bitfinex/quotes_BTCUSD_20251027
["timestamp","ask_amount","ask_price","bid_price","bid_amount"]
[1761588111025,0.00048549,115610.0,115600.0,1.33964692]
[1761588111529,0.00048549,115610.0,115600.0,2.15456897]
[1761588113130,0.00048549,115610.0,115600.0,2.18052235]
[1761588117270,0.00048549,115610.0,115600.0,1.59276235]
[1761588117478,0.00048549,115610.0,115600.0,2.18048235]
[1761588117779,0.00048549,115610.0,115600.0,1.76942593]
[1761588117973,0.00048549,115610.0,115600.0,1.67960692]
[1761588121553,0.00048549,115610.0,115600.0,2.06470996]
[1761588122855,0.00048549,115610.0,115600.0,1.09188692]
[1761588123067,0.00048549,115610.0,115600.0,1.67960692]
[1761588123499,0.00048549,115610.0,115600.0,1.62424692]
[1761588123709,0.00048549,115610.0,115600.0,1.67956692]
[1761588125688,0.00048549,115610.0,115600.0,2.06458537]
[1761588128264,0.00048549,115610.0,115600.0,1.67956692]
[1761588128493,0.00048549,115610.0,115600.0,2.06458537]
[1761588132382,0.00048549,115610.0,115600.0,1.67956692]
[1761588132632,0.00048549,115610.0,115600.0,2.44960382]
[1761588133301,0.00048549,115610.0,115600.0,1.67956692]
[1761588133521,0.00048549,115610.0,115600.0,2.06458537]
[1761588136674,0.00048549,115610.0,115600.0,1.67956692]
[1761588136881,0.00048549,115610.0,115600.0,2.06458537]
[1761588142036,0.38550394,115610.0,115600.0,1.09188692]
[1761588142182,0.01810549,115610.0,115600.0,1.31490692]
[1761588142837,0.01810549,115610.0,115600.0,1.33751692]
[1761588143245,0.00929549,115610.0,115600.0,1.33751692]
[1761588143440,0.00929549,115610.0,115600.0,1.33251692]
[1761588143829,0.1822909,115610.0,115600.0,1.33251692]
[1761588144027,0.00929549,115610.0,115600.0,1.33251692]
[1761588145822,0.1911009,115610.0,115600.0,1.33251692]
[1761588146206,0.1911009,115610.0,115600.0,1.30990692]
[1761588146437,0.01810549,115610.0,115600.0,1.30990692]
[1761588147082,0.00929549,115610.0,115600.0,1.33251692]
[1761588148044,0.1822909,115610.0,115600.0,1.33251692]
[1761588148250,0.00929549,115610.0,115600.0,1.33251692]
[1761588148880,0.00048549,115610.0,115600.0,1.33251692]
[1761588149105,0.1734809,115610.0,115600.0,1.33251692]
[1761588149390,0.00048549,115610.0,115600.0,1.33251692]
[1761588151060,0.1734809,115610.0,115600.0,1.33251692]
[1761588151487,0.56730935,115610.0,115600.0,0.98505654]
[1761588151709,0.56730935,115610.0,115600.0,1.13685654]
[1761588152122,0.57611935,115610.0,115600.0,1.10842654]
[1761588152543,1.08713909,115610.0,115600.0,0.52086654]
[1761588152749,1.11388744,115610.0,115600.0,0.74910654]
[1761588153006,1.20370645,115610.0,115600.0,0.90094654]
[1761588153421,1.20670645,115610.0,115600.0,0.90094654]
[1761588153624,1.20370645,115610.0,115600.0,0.90094654]
[1761588154035,1.20970645,115610.0,115600.0,0.90094654]
[1761588154832,1.20370645,115610.0,115600.0,0.90094654]
[1761588155027,1.20470645,115610.0,115600.0,0.90094654]
[1761588156212,1.19405383,115610.0,115600.0,0.90094654]
[1761588156854,1.21267482,115610.0,115600.0,0.90094654]
[1761588158446,1.19405383,115610.0,115600.0,0.90094654]
[1761588159604,1.19405383,115610.0,115600.0,0.74910654]
[1761588159811,1.19405383,115610.0,115600.0,0.90094654]
[1761588161435,1.19405383,115610.0,115600.0,0.74910654]
[1761588161635,1.19405383,115610.0,115600.0,0.90098654]
[1761588161848,1.55265289,115610.0,115600.0,0.90098654]
[1761588162050,3.19749934,115610.0,115600.0,0.74910654]
[1761588162235,3.22346656,115610.0,115600.0,0.90098654]
[1761588162439,2.83844811,115610.0,115600.0,0.90098654]
[1761588162637,3.22346656,115610.0,115600.0,0.90098654]
[1761588164245,3.22346656,115610.0,115600.0,0.74910654]
[1761588164452,3.04919266,115600.0,115590.0,0.20870502]
[1761588164624,3.91939082,115600.0,115590.0,0.58886502]
[1761588164867,3.92820082,115600.0,115590.0,0.58886502]
[1761588165271,3.95417033,115600.0,115590.0,0.58886502]
[1761588165714,3.91798805,115600.0,115590.0,0.58886502]
[1761588165923,3.95417033,115600.0,115590.0,0.58886502]
[1761588166125,3.96117033,115600.0,115590.0,0.58886502]
[1761588166330,3.96217033,115600.0,115590.0,0.58886502]
[1761588167808,3.96217033,115600.0,115590.0,0.38134502]
[1761588168024,3.96217033,115600.0,115590.0,0.38138502]
[1761588168666,3.84409233,115600.0,115590.0,0.38138502]
[1761588169479,3.86736857,115600.0,115590.0,0.38138502]
[1761588169870,4.92744292,115600.0,115590.0,0.38138502]
[1761588170012,3.77238757,115600.0,115590.0,0.38138502]
[1761588170220,3.77238757,115600.0,115590.0,0.22946502]
[1761588170421,0.20925254,115560.0,115540.0,0.19344037]
[1761588170628,0.20925254,115560.0,115540.0,0.01173]
[1761588170629,0.56691369,115550.0,115540.0,0.01173]
[1761588170840,0.56691369,115550.0,115520.0,0.18476447]
[1761588170841,0.17310022,115540.0,115520.0,0.18476447]
[1761588171060,0.17310022,115540.0,115530.0,0.3803952]
[1761588171304,0.55811867,115540.0,115530.0,0.4076152]
[1761588171509,0.56692867,115540.0,115530.0,0.4076152]
[1761588171887,0.56741356,115540.0,115530.0,0.3921252]
[1761588172102,0.00929489,115540.0,115530.0,0.4076152]
[1761588172301,0.00048489,115540.0,115530.0,0.4322652]
[1761588172989,0.00048489,115540.0,115530.0,0.4402652]
[1761588173143,0.00048489,115540.0,115530.0,0.8208652]
[1761588173925,0.00048489,115540.0,115530.0,1.20588365]
[1761588174130,0.00048489,115540.0,115530.0,0.8208652]
[1761588175873,0.00929489,115540.0,115530.0,0.8208652]
[1761588176086,0.18239511,115540.0,115530.0,0.8208652]
[1761588176482,0.18239511,115540.0,115530.0,0.82209872]
[1761588177845,0.00929489,115540.0,115530.0,0.82209872]
[1761588177982,0.39431334,115540.0,115530.0,0.82209872]
[1761588178183,0.56741356,115540.0,115530.0,0.82209872]
[1761588178629,0.66013634,115540.0,115530.0,0.61830872]
[1761588178802,0.66013634,115540.0,115530.0,0.77026872]
[1761588179011,0.65132634,115540.0,115530.0,0.77026872]
[1761588179212,0.56741356,115540.0,115530.0,0.78605872]
[1761588179627,0.56741356,115540.0,115530.0,0.82315872]
[1761588179832,0.56741356,115540.0,115530.0,0.79836872]
[1761588180394,0.57547988,115540.0,115530.0,0.79836872]
[1761588181124,0.57547988,115540.0,115530.0,0.82315872]
[1761588181326,0.57547988,115540.0,115530.0,0.79836872]
[1761588181728,0.57547988,115540.0,115530.0,0.62525352]
[1761588181932,0.62137854,115540.0,115530.0,0.79836872]
[1761588182138,0.23636009,115540.0,115530.0,0.59715352]
[1761588182346,0.63018854,115540.0,115530.0,0.59711352]
[1761588182545,0.24517009,115540.0,115530.0,0.77022872]
[1761588182878,0.63018854,115540.0,115530.0,0.77022872]
[1761588183083,0.57547988,115540.0,115530.0,0.77022872]
[1761588183647,0.57547988,115540.0,115530.0,0.78601872]
[1761588183998,0.57547988,115540.0,115530.0,0.82311872]
[1761588185184,0.57547988,115540.0,115530.0,0.79832872]
[1761588185769,0.61763367,115540.0,115530.0,0.79832872]
[1761588186777,0.56741356,115540.0,115530.0,0.79832872]
[1761588187007,0.57548898,115540.0,115530.0,0.79832872]
[1761588187851,0.01737031,115540.0,115530.0,0.82287872]
[1761588188061,0.00856031,115540.0,115530.0,0.82287872]
[1761588191387,0.00856031,115540.0,115530.0,1.20848238]
[1761588192054,0.00856031,115540.0,115530.0,0.82287872]
[1761588193979,0.00856031,115540.0,115530.0,1.20848238]
[1761588194315,0.00856031,115540.0,115530.0,0.82287872]
[1761588194938,0.00856031,115540.0,115530.0,1.20848238]
[1761588195733,0.00856031,115540.0,115530.0,2.02390505]
[1761588196167,0.00048489,115540.0,115530.0,2.04987438]
[1761588197548,0.00048489,115540.0,115530.0,2.05087438]
[1761588197748,0.00048489,115540.0,115530.0,2.04287438]
[1761588197948,0.00048489,115540.0,115530.0,2.04187438]
[1761588198172,0.00048489,115540.0,115530.0,2.05487438]
[1761588198374,0.00048489,115540.0,115530.0,2.04287438]
[1761588198547,0.00048489,115540.0,115530.0,1.27166706]
[1761588198755,0.00048489,115540.0,115530.0,1.67327072]
[1761588200003,0.00048489,115540.0,115530.0,1.67339072]
[1761588202096,0.00048489,115540.0,115530.0,1.08539072]
[1761588202337,0.00048489,115540.0,115530.0,1.67335072]
[1761588203717,0.00048489,115540.0,115530.0,2.05895438]
[1761588208701,0.00048489,115540.0,115530.0,0.92185773]
[1761588208937,0.00048489,115540.0,115530.0,1.30746139]
[1761588209140,0.00048489,115540.0,115530.0,1.21764238]
[1761588209355,0.00048489,115540.0,115530.0,0.62960238]
[1761588209614,0.00048489,115540.0,115530.0,0.83203872]
[1761588209822,0.00048489,115540.0,115530.0,0.83103872]
[1761588210253,0.00048489,115540.0,115530.0,0.83203872]
[1761588210459,0.00048489,115540.0,115530.0,0.81603872]
[1761588210664,0.00048489,115540.0,115530.0,0.82403872]
[1761588210871,0.00048489,115540.0,115530.0,0.82503872]
[1761588215939,0.00048489,115540.0,115530.0,1.21064238]
[1761588216147,0.00048489,115540.0,115530.0,0.82503872]
[1761588217949,0.00048489,115540.0,115530.0,1.21064238]
[1761588221028,0.00048489,115540.0,115530.0,0.85101039]
[1761588221233,0.00048489,115540.0,115530.0,1.23661405]
[1761588221576,0.00048489,115540.0,115530.0,0.85101039]
[1761588221788,0.00048489,115540.0,115530.0,1.23661405]
[1761588222689,0.00048489,115540.0,115530.0,1.57661405]
[1761588223093,0.00048489,115540.0,115530.0,1.66643306]
[1761588223506,0.00048489,115540.0,115530.0,1.2808294]
[1761588223713,0.00048489,115540.0,115530.0,1.66643306]
[1761588227573,0.00048489,115540.0,115530.0,1.2808294]
[1761588227779,0.00048489,115540.0,115530.0,1.66643306]
[1761588231685,0.00048489,115540.0,115530.0,1.2808294]
[1761588231892,0.00048489,115540.0,115530.0,1.66643306]
[1761588235456,0.00048489,115540.0,115530.0,1.07839306]
[1761588240041,0.00048489,115540.0,115530.0,0.60297039]
[1761588243320,0.00048489,115540.0,115530.0,0.60147039]
[1761588244347,0.00048489,115540.0,115530.0,0.57549872]
[1761588245774,0.00048489,115540.0,115530.0,0.96110238]
[1761588247769,0.00048489,115540.0,115530.0,0.96096113]
[1761588249190,0.00048489,115540.0,115530.0,1.05078014]
[1761588255050,0.00048489,115540.0,115530.0,0.66531773]
[1761588255228,0.00048489,115540.0,115530.0,1.05078014]
[1761588261191,0.00048489,115540.0,115530.0,0.66531773]
[1761588261413,0.00048489,115540.0,115530.0,0.57549872]
[1761588261825,0.00048489,115540.0,115530.0,0.96096113]
[1761588269200,0.00048489,115540.0,115530.0,1.43624255]
[1761588269395,0.00048489,115540.0,115530.0,1.05078014]
[1761588272726,0.00048489,115540.0,115530.0,0.66531773]
[1761588272928,0.00048489,115540.0,115530.0,1.05078014]
[1761588276122,0.00048489,115540.0,115530.0,0.66531773]
[1761588276324,0.00048489,115540.0,115530.0,1.05078014]
[1761588277853,0.00048489,115540.0,115530.0,1.43624255]
[1761588278530,0.00048489,115540.0,115530.0,1.46220984]
[1761588282228,0.03618228,115590.0,115580.0,0.22840031]
[1761588282438,0.20920762,115590.0,115580.0,0.23985588]
[1761588282660,0.59467003,115590.0,115580.0,0.43231588]
[1761588282866,0.20920762,115590.0,115580.0,0.43231588]
[1761588283073,0.42164469,115590.0,115580.0,0.43231588]
[1761588283276,0.03618228,115590.0,115580.0,0.43231588]
[1761588283492,0.20920762,115590.0,115580.0,0.43231588]
[1761588283705,0.21020762,115590.0,115580.0,0.43231588]
[1761588284366,0.03718228,115590.0,115580.0,0.43231588]
[1761588284566,0.03618228,115590.0,115580.0,0.43231588]
[1761588284996,0.59328898,115600.0,115590.0,0.17302534]
[1761588285234,0.72737986,115600.0,115590.0,0.19775]
[1761588285386,0.72810027,115600.0,115590.0,0.22489]
[1761588285585,0.72810027,115600.0,115590.0,0.20014]
[1761588286108,0.34263786,115600.0,115590.0,0.37316534]
[1761588286317,0.71929027,115600.0,115590.0,0.39791534]
[1761588286456,0.33382786,115600.0,115590.0,0.39791534]
[1761588286670,0.71929027,115600.0,115590.0,0.39791534]
[1761588287074,0.33382786,115600.0,115590.0,0.39791534]
[1761588287275,0.001,115600.0,115590.0,0.39791534]
[1761588287761,0.001,115600.0,115590.0,0.78337775]
[1761588287927,0.001,115600.0,115590.0,0.39791534]
[1761588288322,0.21798866,115610.0,115600.0,0.17301038]
[1761588288546,0.43045469,115610.0,115600.0,0.36095038]
[1761588288740,0.21798769,115610.0,115600.0,0.37678038]
[1761588288964,0.6034501,115610.0,115600.0,0.37678038]
[1761588291967,0.6034501,115610.0,115600.0,0.3713978]
[1761588299141,0.6034501,115610.0,115600.0,0.5789578]
[1761588299768,0.00881,115610.0,115600.0,0.5789578]
[1761588300432,0.21745275,115620.0,115610.0,0.17299541]
[1761588300617,0.00978949,115620.0,115610.0,0.26384541]
[1761588300819,0.00978949,115620.0,115610.0,0.28047541]
[1761588301017,0.18276994,115620.0,115610.0,0.28047541]
[1761588301359,0.17395994,115620.0,115610.0,0.28047541]
[1761588302094,0.55942235,115620.0,115610.0,0.28047541]
[1761588302290,0.17395994,115620.0,115610.0,0.28047541]
[1761588302499,0.55942235,115620.0,115610.0,0.28047541]
[1761588303414,0.56823235,115620.0,115610.0,0.28047541]
[1761588303613,0.56823235,115620.0,115610.0,0.25695541]
[1761588304326,0.19083903,115620.0,115610.0,0.28047541]
[1761588304551,0.56749144,115620.0,115610.0,0.28047541]
[1761588304769,0.00904858,115620.0,115610.0,0.28047541]
[1761588304978,0.00097949,115620.0,115610.0,0.66593782]
[1761588305516,0.00097949,115620.0,115610.0,1.48121924]
[1761588305924,0.00097949,115620.0,115610.0,1.12170839]
[1761588306101,0.00097949,115620.0,115610.0,1.12270839]
[1761588306826,0.00097949,115620.0,115610.0,1.12170839]
[1761588306945,0.00097949,115620.0,115610.0,1.12270839]
[1761588307386,0.00097949,115620.0,115610.0,1.5081708]
[1761588307595,0.04878503,115670.0,115650.0,0.17293558]
[1761588307809,0.03826609,115670.0,115660.0,0.56837565]
[1761588308036,0.03929257,115670.0,115660.0,0.60574062]
[1761588308695,0.03977806,115670.0,115660.0,0.60574062]
[1761588309409,0.04077806,115670.0,115660.0,0.60574062]
[1761588309749,0.03977806,115670.0,115660.0,0.60574062]
[1761588311007,0.21268373,115670.0,115660.0,0.60574062]
[1761588314425,0.64059565,115670.0,115660.0,0.20748]
[1761588314633,0.61497721,115670.0,115660.0,0.58768]
[1761588314849,0.60616721,115670.0,115660.0,0.76060062]
[1761588315082,0.60616721,115670.0,115660.0,0.38016]
[1761588315494,0.60616721,115670.0,115660.0,0.3745412]
[1761588315635,0.61497721,115670.0,115660.0,0.3745412]
[1761588316287,0.22149373,115670.0,115660.0,0.3745412]
[1761588316475,0.60616721,115670.0,115660.0,0.3745412]
[1761588317383,0.60616721,115670.0,115660.0,0.36611311]
[1761588319079,0.22149373,115670.0,115660.0,0.36611311]
[1761588319285,0.60616721,115670.0,115660.0,0.38215311]
[1761588319668,0.60616721,115670.0,115660.0,0.56717373]
[1761588319871,0.60616721,115670.0,115660.0,0.39425311]
[1761588320290,0.60616721,115670.0,115660.0,0.56717373]
[1761588320508,0.03977806,115670.0,115660.0,0.59161373]
[1761588324771,0.03977806,115670.0,115660.0,0.81302062]
[1761588327413,0.03977806,115670.0,115660.0,0.80459343]
[1761588327738,0.06322806,115670.0,115660.0,0.62827343]
[1761588327993,0.23613373,115670.0,115660.0,0.78015343]
[1761588328215,0.04820806,115670.0,115660.0,0.80504343]
[1761588329789,0.03977806,115670.0,115660.0,0.80504343]
[1761588330427,0.03977806,115670.0,115660.0,0.80842524]
[1761588334564,0.06389806,115670.0,115660.0,0.76944062]
[1761588334749,0.03977806,115670.0,115660.0,0.82184062]
[1761588335328,0.05840166,115670.0,115660.0,0.82184062]
[1761588335568,0.08252166,115670.0,115660.0,0.82184062]
[1761588335789,0.05840166,115670.0,115660.0,0.82184062]
[1761588337503,0.05840166,115670.0,115660.0,0.81341336]
[1761588343714,0.03977806,115670.0,115660.0,1.19808684]
[1761588344120,0.03977806,115670.0,115660.0,0.81341336]
[1761588344538,0.03977806,115670.0,115660.0,1.19808684]
[1761588344751,0.03977806,115670.0,115660.0,0.81341336]
[1761588354398,0.03977806,115670.0,115660.0,0.22589336]
[1761588354602,0.03977806,115670.0,115660.0,0.81313336]
[1761588355440,0.03977806,115670.0,115660.0,0.22589336]
[1761588355788,0.03977806,115670.0,115660.0,0.81313336]
[1761588357341,0.03171197,115670.0,115660.0,0.81313336]
[1761588357757,0.03171197,115670.0,115660.0,0.22589336]
[1761588357986,0.03171197,115670.0,115660.0,0.81313336]
[1761588367073,0.06914419,115670.0,115660.0,0.81313336]
[1761588367274,0.05360419,115670.0,115660.0,0.81313336]
[1761588367487,0.03171197,115670.0,115660.0,0.81313336]
[1761588370012,0.46516067,115670.0,115660.0,0.76916062]
[1761588370212,0.44036067,115670.0,115660.0,0.78536062]
[1761588370612,0.44036067,115670.0,115660.0,0.79711062]
[1761588371929,0.05568197,115670.0,115660.0,0.82006062]
[1761588372136,0.44036067,115670.0,115660.0,0.82006062]
[1761588372541,0.44036067,115670.0,115660.0,0.79711062]
[1761588373106,0.61326634,115670.0,115660.0,0.82006062]
[1761588373319,0.44036067,115670.0,115660.0,0.79711062]
[1761588373517,0.44036067,115670.0,115660.0,0.82006062]
[1761588373715,0.44036067,115670.0,115660.0,0.79711062]
[1761588374593,0.61326634,115670.0,115660.0,0.79711062]
[1761588374797,0.63806634,115670.0,115660.0,0.78091062]
[1761588374997,0.33011779,115670.0,115660.0,0.78091062]
[1761588375169,0.22858764,115670.0,115660.0,0.79711062]
[1761588375373,0.61326634,115670.0,115660.0,0.79711062]
[1761588375906,0.44036067,115670.0,115660.0,0.79711062]
[1761588376081,0.05568197,115670.0,115660.0,0.79711062]
[1761588376334,0.44036067,115670.0,115660.0,0.82006062]
[1761588377272,0.61326634,115670.0,115660.0,0.82006062]
[1761588377452,0.04014197,115670.0,115660.0,0.82006062]
[1761588377591,0.44036067,115670.0,115660.0,0.82006062]
[1761588378418,0.61326634,115670.0,115660.0,0.82006062]
[1761588378996,0.44036067,115670.0,115660.0,0.82006062]
[1761588379355,0.44036067,115670.0,115660.0,0.59624]
[1761588379356,0.61326634,115670.0,115660.0,0.59624]
[1761588379555,0.72788535,115670.0,115660.0,0.59624]
[1761588379763,0.72788535,115670.0,115660.0,0.44452]
[1761588379764,0.85388664,115670.0,115660.0,0.44452]
[1761588379939,0.46920794,115670.0,115660.0,0.59624]
[1761588380140,0.86198367,115670.0,115660.0,0.59624]
[1761588380783,0.86198367,115670.0,115660.0,0.58724]
[1761588380998,0.86198367,115670.0,115660.0,0.59324]
[1761588381195,0.47730497,115670.0,115660.0,0.59324]
[1761588381443,0.37938893,115670.0,115660.0,0.76616062]
[1761588381642,0.76406763,115670.0,115660.0,0.76616062]
[1761588382133,0.76406763,115670.0,115660.0,0.59324]
[1761588382336,0.76406763,115670.0,115660.0,0.76616062]
[1761588382674,0.76406763,115670.0,115660.0,0.59324]
[1761588383065,0.37938893,115670.0,115660.0,0.59324]
[1761588383275,0.76406763,115670.0,115660.0,0.59324]
[1761588383908,0.85388664,115670.0,115660.0,0.59324]
[1761588385441,0.35458893,115670.0,115660.0,0.60944]
[1761588385647,0.73926763,115670.0,115660.0,0.60944]
[1761588386066,0.76406763,115670.0,115660.0,0.60944]
[1761588386280,0.35458893,115670.0,115660.0,0.60944]
[1761588386482,0.76406763,115670.0,115660.0,0.60944]
[1761588386725,0.76406763,115670.0,115660.0,0.59324]
[1761588388053,0.85388664,115670.0,115660.0,0.76616062]
[1761588388638,0.03171197,115670.0,115660.0,1.20420932]
[1761588389620,0.03171197,115670.0,115660.0,1.58888802]
[1761588389974,0.03171197,115670.0,115660.0,1.20420932]
[1761588393482,0.03171197,115670.0,115660.0,0.81953062]
[1761588394553,0.03171197,115670.0,115660.0,1.20420932]
[1761588395429,0.03171197,115670.0,115660.0,0.81953062]
[1761588395643,0.03171197,115670.0,115660.0,1.20420932]
[1761588396013,0.03171197,115670.0,115660.0,0.81953062]
[1761588396218,0.03171197,115670.0,115660.0,1.20420932]
[1761588398506,0.03171197,115670.0,115660.0,1.58888802]
[1761588399032,0.03171197,115670.0,115660.0,0.81953062]
[1761588399422,0.03171197,115670.0,115660.0,1.58888802]
[1761588399874,0.03171197,115670.0,115660.0,2.01870703]
[1761588400830,0.03171197,115670.0,115660.0,2.40338573]
[1761588401037,0.00869904,115680.0,115670.0,0.17290567]
[1761588401234,0.00869904,115680.0,115670.0,1.08550044]
[1761588401843,0.00869904,115680.0,115670.0,0.70952078]
[1761588402289,0.00869904,115680.0,115670.0,0.71552078]
[1761588402510,0.00869904,115680.0,115670.0,1.09419948]
[1761588402741,0.00869904,115680.0,115670.0,1.10819948]
[1761588403506,0.00869904,115680.0,115670.0,1.10919948]
[1761588404166,0.00869904,115680.0,115670.0,0.72452078]
[1761588404423,0.00869904,115680.0,115670.0,1.10919948]
[1761588408433,0.00869904,115680.0,115670.0,1.11919947]
[1761588409093,0.00869904,115680.0,115670.0,1.10919948]
[1761588409299,0.00869904,115680.0,115670.0,0.49152208]
[1761588409504,0.00869904,115680.0,115670.0,1.26087948]
[1761588410742,0.00869904,115680.0,115670.0,0.49152208]
[1761588410947,0.00869904,115680.0,115670.0,1.26087948]
[1761588412147,0.00890427,115680.0,115670.0,1.26087948]
[1761588413767,0.00890427,115680.0,115670.0,1.35071948]
[1761588416355,0.00890427,115680.0,115670.0,0.96604078]
[1761588416555,0.00890427,115680.0,115670.0,1.40148078]
[1761588417587,0.00890427,115680.0,115670.0,1.38748078]
[1761588417762,0.00890427,115680.0,115670.0,1.39648078]
[1761588418821,0.00890427,115680.0,115670.0,1.39548078]
[1761588419200,0.00890427,115680.0,115670.0,1.39648078]
[1761588420853,0.00890427,115680.0,115670.0,1.01180208]
[1761588421079,0.00890427,115680.0,115670.0,1.78115948]
[1761588421999,1e-08,115690.0,115680.0,0.53554073]
[1761588422178,1e-08,115690.0,115680.0,1.80636584]
[1761588422591,1e-08,115690.0,115680.0,1.82636582]
[1761588422729,1e-08,115690.0,115680.0,1.05700842]
[1761588423143,0.03965068,115720.0,115690.0,0.20905806]
[1761588423340,0.03965068,115720.0,115710.0,0.32976491]
[1761588423541,0.03965068,115720.0,115710.0,0.87687491]
[1761588423774,0.03965068,115720.0,115710.0,1.17563662]
[1761588424188,0.03965068,115720.0,115710.0,1.1497059]
[1761588424523,0.03965068,115720.0,115710.0,1.14975426]
[1761588424741,0.03965068,115720.0,115710.0,1.53443296]
[1761588424874,0.04065068,115720.0,115710.0,1.53443296]
[1761588425093,0.04065068,115720.0,115710.0,1.14975426]
[1761588425680,0.04065068,115720.0,115710.0,0.80975426]
[1761588427295,0.04871921,115720.0,115710.0,0.80975426]
[1761588427696,0.04871921,115720.0,115710.0,0.22251426]
[1761588427901,0.04871921,115720.0,115710.0,0.80975426]
[1761588431074,0.06450921,115720.0,115710.0,0.80975426]
[1761588431813,0.07012921,115720.0,115710.0,0.80975426]
[1761588432208,0.07012921,115720.0,115710.0,0.76013426]
[1761588432209,0.26616018,115720.0,115710.0,0.76013426]
[1761588432489,0.29209247,115720.0,115710.0,0.76013426]
[1761588432691,0.26889247,115720.0,115710.0,0.77543426]
[1761588434040,0.26950791,115720.0,115710.0,0.77543426]
[1761588434246,0.09667694,115720.0,115710.0,0.77543426]
[1761588434449,0.07526694,115720.0,115710.0,0.81145426]
[1761588439156,0.07527436,115720.0,115710.0,0.81145426]
[1761588441415,0.04934207,115720.0,115710.0,1.19581636]
[1761588442598,0.04934207,115720.0,115710.0,0.81145426]
[1761588442801,0.04934207,115720.0,115710.0,1.19581636]
[1761588443137,0.04934207,115720.0,115710.0,0.81145426]
[1761588443444,0.04934207,115720.0,115710.0,1.19581636]
[1761588444539,0.04126612,115720.0,115710.0,1.19581636]
[1761588446901,0.04126612,115720.0,115710.0,1.20461351]
[1761588447080,0.04126612,115720.0,115710.0,0.82025141]
[1761588447305,0.04126612,115720.0,115710.0,1.20461351]
[1761588449706,0.04126612,115720.0,115710.0,1.19581636]
[1761588449914,0.04126612,115720.0,115710.0,0.81145426]
[1761588452074,0.04126612,115720.0,115710.0,0.82013715]
[1761588452491,0.04126612,115720.0,115710.0,0.81145426]
[1761588452907,0.04126612,115720.0,115710.0,0.81133426]
[1761588453342,0.04126612,115720.0,115710.0,0.65965426]
[1761588453547,0.04126612,115720.0,115710.0,0.81133426]
[1761588453759,0.08688612,115720.0,115710.0,0.76001426]
[1761588453996,0.08688612,115720.0,115710.0,0.60833426]
[1761588453997,0.25971709,115720.0,115710.0,0.60833426]
[1761588454257,0.06297612,115720.0,115710.0,0.78634426]
[1761588454476,0.08890971,115720.0,115710.0,0.78634426]
[1761588456310,0.26174068,115720.0,115710.0,0.78634426]
[1761588456729,0.08890971,115720.0,115710.0,0.78634426]
[1761588457965,0.08890971,115720.0,115710.0,0.80948426]
[1761588458184,0.04688612,115720.0,115710.0,0.80948426]
[1761588459771,0.06297612,115720.0,115710.0,0.80948426]
[1761588461847,0.06297612,115720.0,115710.0,0.78634426]
[1761588462050,0.06297612,115720.0,115710.0,0.80948426]
[1761588462624,0.06297612,115720.0,115710.0,0.78634426]
[1761588462828,0.23580709,115720.0,115710.0,0.78634426]
[1761588463329,0.06297612,115720.0,115710.0,0.78634426]
[1761588463857,0.06297612,115720.0,115710.0,0.81072426]
[1761588464301,0.04688612,115720.0,115710.0,0.81072426]
[1761588464514,0.04126612,115720.0,115710.0,0.81072426]
[1761588466632,0.04126612,115720.0,115710.0,1.19508636]
[1761588466854,0.04126612,115720.0,115710.0,1.66926747]
[1761588467265,0.04126612,115720.0,115710.0,1.28490537]
[1761588467482,0.04126612,115720.0,115710.0,2.00926747]
[1761588468363,0.04026612,115720.0,115710.0,2.00926747]
[1761588468575,0.04026612,115720.0,115710.0,2.01026747]
[1761588468785,0.04026612,115720.0,115710.0,1.24154327]
[1761588468986,0.04026612,115720.0,115710.0,2.01026747]
[1761588470956,0.04026612,115720.0,115710.0,1.24154327]
[1761588471107,0.04026612,115720.0,115710.0,1.42314747]
[1761588471310,0.04026612,115720.0,115710.0,2.01018747]
[1761588472421,0.04026612,115720.0,115710.0,1.47414537]
[1761588472627,0.04026612,115720.0,115710.0,1.62582537]
[1761588475337,0.04026612,115720.0,115710.0,1.47414537]
[1761588475557,0.04026612,115720.0,115710.0,1.15164426]
[1761588476632,0.04026612,115720.0,115710.0,1.53600636]
[1761588477222,0.04026612,115720.0,115710.0,1.53500636]
[1761588477700,0.04326612,115720.0,115710.0,1.53500636]
[1761588479580,0.04326612,115720.0,115710.0,0.99896426]
[1761588479711,0.04326612,115720.0,115710.0,1.15064426]
[1761588481028,0.04326612,115720.0,115710.0,1.53500636]
[1761588482765,0.04326612,115720.0,115710.0,1.62482537]
[1761588482969,0.04326612,115720.0,115710.0,2.00918747]
[1761588483170,0.04326612,115720.0,115710.0,1.62482537]
[1761588483304,0.04326612,115720.0,115710.0,2.00918747]
[1761588484527,0.04026612,115720.0,115710.0,2.00918747]
[1761588484929,0.04026612,115720.0,115710.0,2.01018747]
[1761588489633,0.04026612,115720.0,115710.0,2.03611394]
[1761588491880,0.04026612,115720.0,115710.0,0.90587151]
[1761588492072,0.04026612,115720.0,115710.0,1.28555151]
[1761588492325,1.09108581,115720.0,115710.0,0.43636836]
[1761588492532,1.09108581,115720.0,115710.0,0.58804836]
[1761588492746,0.70691757,115720.0,115710.0,0.58804836]
[1761588492950,0.70691757,115720.0,115710.0,0.58836836]
[1761588493166,1.18090482,115720.0,115710.0,0.43536836]
[1761588493445,1.18090482,115720.0,115710.0,0.43636836]
[1761588493446,1.18898736,115720.0,115710.0,0.43636836]
[1761588493637,1.59177597,115720.0,115710.0,0.22908836]
[1761588493853,1.20760773,115720.0,115710.0,0.22808836]
[1761588494054,1.21560773,115720.0,115710.0,0.38012836]
[1761588494257,1.21640546,115720.0,115710.0,0.38012836]
[1761588494464,0.43927125,115720.0,115710.0,0.38012836]
[1761588494679,1.21860773,115720.0,115710.0,0.38012836]
[1761588494879,1.20860773,115720.0,115710.0,0.38012836]
[1761588495308,1.22260773,115720.0,115710.0,0.38012836]
[1761588496265,1.20398736,115720.0,115710.0,0.38012836]
[1761588497285,1.1787774,115720.0,115710.0,0.38012836]
[1761588497502,1.17875843,115720.0,115710.0,0.38012836]
[1761588497700,1.17069486,115720.0,115710.0,0.38012836]
[1761588498510,1.15669486,115720.0,115710.0,0.38012836]
[1761588498717,0.40135838,115720.0,115710.0,0.38012836]
[1761588498924,1.16969486,115720.0,115710.0,0.38012836]
[1761588499126,1.16869486,115720.0,115710.0,0.38012836]
[1761588499325,1.25851387,115720.0,115710.0,0.38012836]
[1761588499544,1.25951387,115720.0,115710.0,0.38012836]
[1761588499783,0.49117739,115720.0,115710.0,0.38012836]
[1761588499978,1.25951387,115720.0,115710.0,0.38012836]
[1761588501156,0.49117739,115720.0,115710.0,0.38012836]
[1761588501367,1.25951387,115720.0,115710.0,0.38012836]
[1761588501806,0.40135838,115720.0,115710.0,0.38012836]
[1761588502024,1.16969486,115720.0,115710.0,0.38012836]
[1761588502666,1.19563287,115720.0,115710.0,0.38012836]
[1761588504798,0.81146463,115720.0,115710.0,0.38012836]
[1761588505720,0.42629639,115720.0,115710.0,0.38012836]
[1761588505922,0.44840432,115720.0,115710.0,0.38012836]
[1761588506073,0.83357256,115720.0,115710.0,0.38012836]
[1761588506263,0.41429639,115720.0,115710.0,0.38012836]
[1761588506478,0.79846463,115720.0,115710.0,0.38012836]
[1761588506679,0.80946463,115720.0,115710.0,0.38012836]